fUSD/lending_fUSD_20250629
["ID","MTS","AMOUNT","RATE_DAILY","PERIOD"]
[368476861,1751189472771,-490.0,0.00027945,3]
[368476862,1751189472780,-490.0,0.00027945,3]
[368476863,1751189472789,-490.0,0.00027945,3]
[368476864,1751189472799,-490.0,0.00027945,3]
[368476865,1751189472809,-490.0,0.00027945,3]
[368476866,1751189472818,-490.0,0.00027945,3]
[368476867,1751189472828,-490.0,0.00027945,3]
[368476868,1751189472838,-490.0,0.00027945,3]
[368476869,1751189472847,-490.0,0.00027945,3]
[368476870,1751189472856,-1022.8,0.00027945,3]
[368476871,1751189472866,-490.0,0.00027945,3]
[368476872,1751189472878,-490.0,0.00027945,3]
[368476873,1751189472887,-786.24,0.00027945,3]
[368476874,1751189472898,-490.0,0.00027945,3]
[368476875,1751189472908,-490.0,0.00027945,3]
[368476876,1751189472918,-490.0,0.00027945,3]
[368476877,1751189472927,-490.0,0.00027945,3]
[368476878,1751189472937,-490.0,0.00027945,3]
[368476879,1751189472946,-490.0,0.00027945,3]
[368476880,1751189472957,-1418.76,0.00027945,3]
[368476881,1751189472966,-490.0,0.00027945,3]
[368476882,1751189472976,-1168.69,0.00027945,3]
[368476883,1751189472985,-490.0,0.00027945,3]
[368476884,1751189472995,-490.0,0.00027945,3]
[368476885,1751189473003,-490.0,0.00027945,3]
[368476886,1751189473011,-490.0,0.00027945,3]
[368476887,1751189473020,-490.0,0.00027945,3]
[368476888,1751189473030,-356.93116626,0.00027945,3]
[368476889,1751189473039,-490.0,0.00027945,3]
[368476890,1751189473049,-702.38,0.00027945,3]
[368476891,1751189473058,-490.0,0.00027945,3]
[368476892,1751189473068,-379.63277885,0.00027945,3]
[368476893,1751189473077,-490.0,0.00027945,3]
[368476894,1751189473086,-490.0,0.00027945,3]
[368476895,1751189473095,-1069.32,0.00027945,3]
[368476896,1751189473105,-785.66,0.00027945,3]
[368476897,1751189473115,-563.0905382,0.00027945,3]
[368476898,1751189473124,-695.38,0.00027945,3]
[368476899,1751189473133,-490.0,0.00027945,3]
[368476900,1751189473143,-490.0,0.00027945,3]
[368476901,1751189473153,-490.0,0.00027945,3]
[368476902,1751189473162,-490.0,0.00027945,3]
[368476903,1751189473171,-490.0,0.00027945,3]
[368476904,1751189473181,-490.0,0.00027945,3]
[368476905,1751189473190,-490.0,0.00027945,3]
[368476906,1751189473199,-490.0,0.00027945,3]
[368476907,1751189473208,-490.0,0.00027945,3]
[368476908,1751189473217,-1047.3,0.00027945,3]
[368476909,1751189473226,-1258.53,0.00027945,3]
[368476910,1751189473235,-823.69,0.00027945,3]
[368476911,1751189473245,-578.63,0.00027945,3]
[368476912,1751189473254,-677.33,0.00027945,3]
[368476913,1751189473263,-490.0,0.00027945,3]
[368476914,1751189473273,-977.62,0.00027945,3]
[368476915,1751189473282,-490.0,0.00027945,3]
[368476916,1751189473292,-490.0,0.00027945,3]
[368476917,1751189473301,-532.50241067,0.00027945,3]
[368476918,1751189473310,-490.0,0.00027945,3]
[368476919,1751189473319,-490.0,0.00027945,3]
[368476920,1751189473328,-490.0,0.00027945,3]
[368476921,1751189473338,-545.72,0.00027945,3]
[368476922,1751189473347,-1605.81,0.00027945,3]
[368476923,1751189473356,-490.0,0.00027945,3]
[368476924,1751189473365,-490.0,0.00027945,3]
[368476925,1751189473375,-490.0,0.00027945,3]
[368476926,1751189473385,-490.0,0.00027945,3]
[368476927,1751189473395,-490.0,0.00027945,3]
[368476928,1751189473404,-619.54,0.00027945,3]
[368476929,1751189473414,-490.0,0.00027945,3]
[368476930,1751189473423,-490.0,0.00027945,3]
[368476931,1751189473432,-490.0,0.00027945,3]
[368476932,1751189473442,-804.6,0.00027945,3]
[368476933,1751189473452,-1438.38,0.00027945,3]
[368476934,1751189473461,-601.49,0.00027945,3]
[368476935,1751189473470,-490.0,0.00027945,3]
[368476936,1751189473479,-490.0,0.00027945,3]
[368476937,1751189473489,-155.261825,0.00027945,3]
[368476938,1751189473498,-490.0,0.00027945,3]
[368476939,1751189473507,-490.0,0.00027945,3]
[368476940,1751189473516,-1064.38,0.00027945,3]
[368476941,1751189473525,-490.0,0.00027945,3]
[368476942,1751189473535,-490.0,0.00027945,3]
[368476943,1751189473544,-490.0,0.00027945,3]
[368476944,1751189473554,-599.65,0.00027945,3]
[368476945,1751189473563,-490.0,0.00027945,3]
[368476946,1751189473573,-736.42,0.00027945,3]
[368476947,1751189473582,-1109.15,0.00027945,3]
[368476948,1751189473591,-490.0,0.00027945,3]
[368476949,1751189473600,-490.0,0.00027945,3]
[368476950,1751189473610,-490.0,0.00027945,3]
[368476951,1751189473618,-490.0,0.00027945,3]
[368476952,1751189473627,-981.7,0.00027945,3]
[368476953,1751189473635,-490.0,0.00027945,3]
[368476954,1751189473644,-490.0,0.00027945,3]
[368476955,1751189473654,-490.0,0.00027945,3]
[368476956,1751189473663,-490.0,0.00027945,3]
[368476957,1751189473673,-490.0,0.00027945,3]
[368476958,1751189473683,-490.0,0.00027945,3]
[368476959,1751189473693,-490.0,0.00027945,3]
[368476960,1751189473702,-522.61,0.00027945,3]
[368476961,1751189473712,-490.0,0.00027945,3]
[368476962,1751189473721,-726.4,0.00027945,3]
[368476963,1751189473730,-492.03452513,0.00027945,3]
[368476964,1751189473740,-490.0,0.00027945,3]
[368476965,1751189473749,-490.0,0.00027945,3]
[368476966,1751189473759,-490.0,0.00027945,3]
[368476967,1751189473769,-490.0,0.00027945,3]
[368476968,1751189473778,-490.0,0.00027945,3]
[368476969,1751189473787,-490.0,0.00027945,3]
[368476970,1751189473797,-528.76,0.00027945,3]
[368476971,1751189473806,-490.0,0.00027945,3]
[368476972,1751189473814,-490.0,0.00027945,3]
[368476973,1751189473823,-749.48,0.00027945,3]
[368476974,1751189473831,-490.0,0.00027945,3]
[368476975,1751189473840,-490.0,0.00027945,3]
[368476976,1751189473850,-1154.83,0.00027945,3]
[368476977,1751189473859,-1285.95,0.00027945,3]
[368476978,1751189473870,-490.0,0.00027945,3]
[368476979,1751189473881,-654.43,0.00027945,3]
[368476980,1751189473890,-490.0,0.00027945,3]
[368476981,1751189473901,-490.0,0.00027945,3]
[368476982,1751189473911,-490.0,0.00027945,3]
[368476983,1751189473922,-310.02531355,0.00027945,3]
[368476984,1751189473931,-490.0,0.00027945,3]
[368476985,1751189473941,-568.05,0.00027945,3]
[368476986,1751189473953,-490.0,0.00027945,3]
[368476987,1751189473963,-490.0,0.00027945,3]
[368476988,1751189473973,-2303.01,0.00027945,3]
[368476989,1751189473983,-490.0,0.00027945,3]
[368476990,1751189473992,-1151.7,0.00027945,3]
[368476991,1751189474002,-490.0,0.00027945,3]
[368476992,1751189474011,-490.0,0.00027945,3]
[368476993,1751189474020,-490.0,0.00027945,3]
[368476994,1751189474030,-490.0,0.00027945,3]
[368476995,1751189474039,-490.0,0.00027945,3]
[368476996,1751189474048,-490.0,0.00027945,3]
[368476997,1751189474058,-490.0,0.00027945,3]
[368476998,1751189474068,-508.83355681,0.00027945,3]
[368476999,1751189474077,-2763.49,0.00027945,3]
[368477000,1751189474086,-490.0,0.00027945,3]
[368477001,1751189474096,-520.71,0.00027945,3]
[368477002,1751189474105,-490.0,0.00027945,3]
[368477003,1751189474115,-490.0,0.00027945,3]
[368477004,1751189474124,-515.29,0.00027945,3]
[368477005,1751189474133,-490.0,0.00027945,3]
[368477006,1751189474142,-490.0,0.00027945,3]
[368477007,1751189474153,-2217.84,0.00027945,3]
[368477008,1751189474163,-490.0,0.00027945,3]
[368477009,1751189474172,-490.0,0.00027945,3]
[368477010,1751189474181,-567.92,0.00027945,3]
[368477011,1751189474191,-490.0,0.00027945,3]
[368477012,1751189474200,-1350.27,0.00027945,3]
[368477013,1751189474209,-490.0,0.00027945,3]
[368477014,1751189474219,-490.0,0.00027945,3]
[368477015,1751189474229,-508.1732117,0.00027945,3]
[368477016,1751189474238,-490.0,0.00027945,3]
[368477017,1751189474248,-490.0,0.00027945,3]
[368477018,1751189474258,-490.0,0.00027945,3]
[368477019,1751189474268,-2005.01,0.00027945,3]
[368477020,1751189474277,-490.0,0.00027945,3]
[368477021,1751189474287,-490.0,0.00027945,3]
[368477022,1751189474296,-1171.27,0.00027945,3]
[368477023,1751189474306,-599.79,0.00027945,3]
[368477024,1751189474315,-490.0,0.00027945,3]
[368477025,1751189474324,-490.0,0.00027945,3]
[368477026,1751189474334,-490.0,0.00027945,3]
[368477027,1751189474343,-1337.18,0.00027945,3]
[368477028,1751189474353,-1337.18,0.00027945,3]
[368477029,1751189474363,-940.81,0.00027945,3]
[368477030,1751189474372,-490.0,0.00027945,3]
[368477031,1751189474381,-597.68,0.00027945,3]
[368477032,1751189474391,-2500.0,0.00027945,14]
[368477033,1751189474401,-490.0,0.00027945,3]
[368477034,1751189474411,-490.0,0.00027945,3]
[368477035,1751189474420,-543.4,0.00027945,3]
[368477036,1751189474429,-676.2,0.00027945,3]
[368477037,1751189474439,-490.0,0.00027945,3]
[368477038,1751189474448,-490.0,0.00027945,3]
[368477039,1751189474458,-932.13,0.00027945,3]
[368477040,1751189474467,-490.0,0.00027945,3]
[368477041,1751189474477,-1152.98,0.00027945,3]
[368477042,1751189474486,-490.0,0.00027945,3]
[368477043,1751189474495,-490.0,0.00027945,3]
[368477044,1751189474505,-490.0,0.00027945,3]
[368477045,1751189474514,-529.0,0.00027945,3]
[368477046,1751189474524,-1140.97,0.00027945,3]
[368477047,1751189474533,-876.8,0.00027945,3]
[368477048,1751189474542,-840.26,0.00027945,3]
[368477049,1751189474552,-2285.73,0.00027945,3]
[368477050,1751189474561,-490.0,0.00027945,3]
[368477051,1751189474570,-490.0,0.00027945,3]
[368477052,1751189474580,-490.0,0.00027945,3]
[368477053,1751189474589,-1905.89,0.00027945,3]
[368477054,1751189474599,-490.0,0.00027945,3]
[368477055,1751189474608,-1754.87,0.00027945,3]
[368477056,1751189474618,-2305.01,0.00027945,3]
[368477057,1751189474628,-490.0,0.00027945,3]
[368477058,1751189474835,-1674.7,0.00027945,3]
[368477059,1751189474859,-490.0,0.00027945,3]
[368477060,1751189474871,-490.0,0.00027945,3]
[368477061,1751189474881,-542.85106082,0.00027945,3]
[368477062,1751189474891,-490.0,0.00027945,3]
[368477063,1751189474901,-490.0,0.00027945,3]
[368477064,1751189474911,-533.61,0.00027945,3]
[368477065,1751189474921,-490.0,0.00027945,3]
[368477066,1751189474930,-2512.54,0.00027945,3]
[368477067,1751189474940,-895.46,0.00027945,3]
[368477068,1751189474949,-490.0,0.00027945,3]
[368477069,1751189474958,-199.82535444,0.00027945,3]
[368477070,1751189474968,-490.0,0.00027945,3]
[368477071,1751189474978,-1717.8,0.00027945,3]
[368477072,1751189474987,-490.0,0.00027945,3]
[368477073,1751189474997,-490.0,0.00027945,3]
[368477074,1751189475006,-577.71,0.00027945,3]
[368477075,1751189475016,-542.89523929,0.00027945,3]
[368477076,1751189475025,-1954.52,0.00027945,3]
[368477077,1751189475034,-1067.36,0.00027945,3]
[368477078,1751189475043,-1012.44,0.00027945,3]
[368477079,1751189475052,-490.0,0.00027945,3]
[368477080,1751189475062,-490.0,0.00027945,3]
[368477081,1751189475072,-490.0,0.00027945,3]
[368477082,1751189475081,-490.0,0.00027945,3]
[368477083,1751189475090,-492.61,0.00027945,3]
[368477084,1751189475100,-490.0,0.00027945,3]
[368477085,1751189475109,-490.0,0.00027945,3]
[368477086,1751189475119,-683.79,0.00027945,3]
[368477087,1751189475128,-3076.198905,0.00027945,3]
[368477088,1751189475138,-490.0,0.00027945,3]
[368477089,1751189475147,-490.0,0.00027945,3]
[368477090,1751189475157,-503.05868527,0.00027945,3]
[368477091,1751189475166,-685.94,0.00027945,3]
[368477092,1751189475175,-1007.44,0.00027945,3]
[368477093,1751189475184,-490.0,0.00027945,3]
[368477094,1751189475194,-581.23,0.00027945,3]
[368477095,1751189475204,-498.1,0.00027945,3]
[368477096,1751189475213,-490.0,0.00027945,3]
[368477097,1751189475222,-538.13,0.00027945,3]
[368477098,1751189475232,-490.0,0.00027945,3]
[368477099,1751189475241,-490.0,0.00027945,3]
[368477100,1751189475250,-616.46,0.00027945,3]
[368477101,1751189475259,-490.0,0.00027945,3]
[368477102,1751189475269,-848.59,0.00027945,3]
[368477103,1751189475279,-674.2,0.00027945,3]
[368477104,1751189475288,-1204.2,0.00027945,3]
[368477105,1751189475297,-490.0,0.00027945,3]
[368477106,1751189475307,-490.0,0.00027945,3]
[368477107,1751189475316,-596.46,0.00027945,3]
[368477108,1751189475325,-490.0,0.00027945,3]
[368477109,1751189475334,-571.89,0.00027945,3]
[368477110,1751189475343,-936.57,0.00027945,3]
[368477111,1751189475354,-490.0,0.00027945,3]
[368477112,1751189475363,-201.64,0.00027945,3]
[368477113,1751189475373,-565.46,0.00027945,3]
[368477114,1751189475383,-490.0,0.00027945,3]
[368477115,1751189475393,-1522.66,0.00027945,3]
[368477116,1751189475404,-558.78,0.00027945,3]
[368477117,1751189475414,-490.0,0.00027945,3]
[368477118,1751189475423,-549.09,0.00027945,3]
[368477119,1751189475432,-490.0,0.00027945,3]
[368477120,1751189475442,-499.63,0.00027945,3]
[368477121,1751189475451,-1868.14,0.00027945,3]
[368477122,1751189475461,-490.0,0.00027945,3]
[368477123,1751189475470,-1918.73,0.00027945,3]
[368477124,1751189475479,-1030.11,0.00027945,3]
[368477125,1751189475490,-490.0,0.00027945,3]
[368477126,1751189475499,-2189.86,0.00027945,3]
[368477127,1751189475509,-490.0,0.00027945,3]
[368477128,1751189475518,-1023.79,0.00027945,3]
[368477129,1751189475527,-2199.62,0.00027945,3]
[368477130,1751189475536,-1785.13,0.00027945,3]
[368477131,1751189475546,-799.6,0.00027945,3]
[368477132,1751189475555,-490.0,0.00027945,3]
[368477133,1751189475564,-490.0,0.00027945,3]
[368477134,1751189475573,-510.0,0.00027945,3]
[368477135,1751189475583,-1233.03,0.00027945,3]
[368477136,1751189475592,-490.0,0.00027945,3]
[368477137,1751189475602,-2446.65,0.00027945,3]
[368477138,1751189475612,-1401.25,0.00027945,3]
[368477139,1751189475622,-1026.02,0.00027945,3]
[368477140,1751189475631,-770.75,0.00027945,3]
[368477141,1751189475642,-826.99,0.00027945,3]
[368477142,1751189475652,-490.0,0.00027945,3]
[368477143,1751189475661,-982.14,0.00027945,3]
[368477144,1751189475671,-493.03,0.00027945,3]
[368477145,1751189475680,-708.82,0.00027945,3]
[368477146,1751189475690,-490.0,0.00027945,3]
[368477147,1751189475700,-1855.46,0.00027945,3]
[368477148,1751189475709,-638.55,0.00027945,3]
[368477149,1751189475718,-1059.21,0.00027945,3]
[368477150,1751189475728,-598.49,0.00027945,3]
[368477151,1751189475737,-1228.98,0.00027945,3]
[368477152,1751189475747,-490.0,0.00027945,3]
[368477153,1751189475756,-1000.0,0.00027945,3]
[368477154,1751189475766,-226.57289344,0.00027945,3]
[368477155,1751189475775,-1065.26,0.00027945,3]
[368477156,1751189475785,-1584.56,0.00027945,3]
[368477157,1751189475795,-2736.96,0.00027945,3]
[368477158,1751189475805,-665.95,0.00027945,3]
[368477159,1751189475814,-235.790028,0.00027945,7]
[368477160,1751189475825,-235.790028,0.00027945,7]
[368477161,1751189475834,-584.21,0.00027945,3]
[368477162,1751189475846,-495.1,0.00027945,3]
[368477163,1751189475856,-235.790028,0.00027945,7]
[368477164,1751189475867,-235.790028,0.00027945,7]
[368477165,1751189475880,-732.39,0.00027945,3]
[368477166,1751189475890,-490.0,0.00027945,3]
[368477167,1751189475900,-787.76,0.00027945,3]
[368477168,1751189475911,-490.0,0.00027945,3]
[368477169,1751189475923,-490.0,0.00027945,3]
[368477170,1751189475932,-490.0,0.00027945,3]
[368477171,1751189475942,-490.0,0.00027945,3]
[368477172,1751189475953,-1026.46,0.00027945,3]
[368477173,1751189475963,-490.0,0.00027945,3]
[368477174,1751189475973,-1575.91,0.00027945,3]
[368477175,1751189475982,-490.0,0.00027945,3]
[368477176,1751189475993,-1121.92,0.00027945,3]
[368477177,1751189476003,-490.0,0.00027945,3]
[368477178,1751189476013,-1690.85,0.00027945,3]
[368477179,1751189476022,-490.0,0.00027945,3]
[368477180,1751189476032,-490.0,0.00027945,3]
[368477181,1751189476041,-2761.07,0.00027945,3]
[368477182,1751189476051,-531.49,0.00027945,3]
[368477183,1751189476061,-1526.52,0.00027945,3]
[368477184,1751189476070,-490.0,0.00027945,3]
[368477185,1751189476079,-1694.31,0.00027945,3]
[368477186,1751189476089,-702.41,0.00027945,3]
[368477187,1751189476098,-1981.2,0.00027945,3]
[368477188,1751189476108,-490.0,0.00027945,3]
[368477189,1751189476116,-490.0,0.00027945,3]
[368477190,1751189476126,-508.18,0.00027945,3]
[368477191,1751189476135,-624.28,0.00027945,3]
[368477192,1751189476144,-490.0,0.00027945,3]
[368477193,1751189476154,-1627.23,0.00027945,3]
[368477194,1751189476163,-490.0,0.00027945,3]
[368477195,1751189476173,-490.0,0.00027945,3]
[368477196,1751189476182,-490.0,0.00027945,3]
[368477197,1751189476191,-518.99,0.00027945,3]
[368477198,1751189476200,-1327.19,0.00027945,3]
[368477199,1751189476210,-490.0,0.00027945,3]
[368477200,1751189476219,-490.0,0.00027945,3]
[368477201,1751189476228,-490.0,0.00027945,3]
[368477202,1751189476238,-2432.32,0.00027945,3]
[368477203,1751189476247,-1088.6,0.00027945,3]
[368477204,1751189476256,-490.0,0.00027945,3]
[368477205,1751189476267,-224.74734232,0.00027945,3]
[368477206,1751189476277,-1771.26,0.00027945,3]
[368477207,1751189476286,-490.0,0.00027945,3]
[368477208,1751189476295,-1206.1,0.00027945,3]
[368477209,1751189476304,-758.41,0.00027945,3]
[368477210,1751189476314,-490.0,0.00027945,3]
[368477211,1751189476324,-490.0,0.00027945,3]
[368477212,1751189476334,-750.9,0.00027945,3]
[368477213,1751189476343,-759.09,0.00027945,3]
[368477214,1751189476353,-1081.38,0.00027945,3]
[368477215,1751189476363,-490.0,0.00027945,3]
[368477216,1751189476372,-514.60391201,0.00027945,3]
[368477217,1751189476382,-490.0,0.00027945,3]
[368477218,1751189476391,-490.0,0.00027945,3]
[368477219,1751189476400,-490.0,0.00027945,3]
[368477220,1751189476410,-490.0,0.00027945,3]
[368477221,1751189476419,-1846.99,0.00027945,3]
[368477222,1751189476428,-490.0,0.00027945,3]
[368477223,1751189476438,-490.0,0.00027945,3]
[368477224,1751189476447,-601.02,0.00027945,3]
[368477225,1751189476456,-685.14,0.00027945,3]
[368477226,1751189476465,-631.32,0.00027945,3]
[368477227,1751189476476,-1984.57,0.00027945,3]
[368477228,1751189476485,-2077.57,0.00027945,3]
[368477229,1751189476494,-490.0,0.00027945,3]
[368477230,1751189476504,-490.0,0.00027945,3]
[368477231,1751189476513,-490.0,0.00027945,3]
[368477232,1751189476522,-490.0,0.00027945,3]
[368477233,1751189476532,-592.27,0.00027945,3]
[368477234,1751189476542,-736.11,0.00027945,3]
[368477235,1751189476552,-1439.96,0.00027945,3]
[368477236,1751189476561,-490.0,0.00027945,3]
[368477237,1751189476570,-490.0,0.00027945,3]
[368477238,1751189476581,-490.0,0.00027945,3]
[368477239,1751189476591,-654.72,0.00027945,3]
[368477240,1751189476601,-630.0,0.00027945,3]
[368477241,1751189476610,-490.0,0.00027945,3]
[368477242,1751189476620,-959.58,0.00027945,3]
[368477243,1751189476630,-1197.6,0.00027945,3]
[368477244,1751189476639,-490.0,0.00027945,3]
[368477245,1751189476649,-980.66,0.00027945,3]
[368477246,1751189476659,-270.78751801,0.00027945,3]
[368477247,1751189476668,-1680.08,0.00027945,3]
[368477248,1751189476677,-609.08,0.00027945,3]
[368477249,1751189476687,-435.45386158,0.00027945,3]
[368477250,1751189476696,-590.69860393,0.00027945,3]
[368477251,1751189476705,-228.33251049,0.00027945,3]
[368477252,1751189476715,-490.0,0.00027945,3]
[368477253,1751189476724,-1305.23,0.00027945,3]
[368477254,1751189476733,-926.84,0.00027945,3]
[368477255,1751189476742,-490.0,0.00027945,3]
[368477256,1751189476752,-686.36,0.00027945,3]
[368477257,1751189476763,-490.0,0.00027945,3]
[368477258,1751189476772,-490.0,0.00027945,3]
[368477259,1751189476783,-435.06041293,0.00027945,3]
[368477260,1751189477443,-853.51958707,0.00027945,3]
[368477261,1751189477453,-490.0,0.00027945,3]
[368477262,1751189477462,-490.0,0.00027945,3]
[368477263,1751189477471,-490.0,0.00027945,3]
[368477264,1751189477480,-490.0,0.00027945,3]
[368477265,1751189477489,-490.0,0.00027945,3]
[368477266,1751189477499,-490.0,0.00027945,3]
[368477267,1751189477508,-2790.04,0.00027945,3]
[368477268,1751189477517,-490.0,0.00027945,3]
[368477269,1751189477526,-537.75,0.00027945,3]
[368477270,1751189477535,-490.0,0.00027945,3]
[368477271,1751189477545,-1131.39,0.00027945,3]
[368477272,1751189477554,-1124.79,0.00027945,3]
[368477273,1751189477562,-925.27,0.00027945,3]
[368477274,1751189477571,-490.0,0.00027945,3]
[368477275,1751189477580,-1076.03,0.00027945,3]
[368477276,1751189477589,-490.0,0.00027945,3]
[368477277,1751189477598,-493.75,0.00027945,3]
[368477278,1751189477607,-151.750269,0.00027945,3]
[368477279,1751189477615,-490.0,0.00027945,3]
[368477280,1751189477624,-490.0,0.00027945,3]
[368477281,1751189477633,-490.0,0.00027945,3]
[368477282,1751189477642,-490.0,0.00027945,3]
[368477283,1751189477652,-2705.95,0.00027945,3]
[368477284,1751189477661,-490.0,0.00027945,3]
[368477285,1751189477670,-1813.81,0.00027945,3]
[368477286,1751189477679,-4639.39,0.00027945,3]
[368477287,1751189477688,-545.33,0.00027945,3]
[368477288,1751189477697,-524.62,0.00027945,3]
[368477289,1751189477706,-490.0,0.00027945,3]
[368477290,1751189477715,-1087.87,0.00027945,3]
[368477291,1751189477725,-490.0,0.00027945,3]
[368477292,1751189477734,-1659.83,0.00027945,3]
[368477293,1751189477743,-490.0,0.00027945,3]
[368477294,1751189477752,-490.0,0.00027945,3]
[368477295,1751189477761,-490.0,0.00027945,3]
[368477296,1751189477770,-490.0,0.00027945,3]
[368477297,1751189477779,-1752.18,0.00027945,3]
[368477298,1751189477788,-490.0,0.00027945,3]
[368477299,1751189477798,-490.0,0.00027945,3]
[368477300,1751189477807,-490.0,0.00027945,3]
[368477301,1751189477817,-490.0,0.00027945,3]
[368477302,1751189477827,-1469.22,0.00027945,3]
[368477303,1751189477836,-2536.92,0.00027945,3]
[368477304,1751189477846,-579.74,0.00027945,3]
[368477305,1751189477855,-688.45,0.00027945,3]
[368477306,1751189477865,-578.1,0.00027945,3]
[368477307,1751189477877,-2115.71,0.00027945,3]
[368477308,1751189477886,-1151.73,0.00027945,3]
[368477309,1751189477895,-490.0,0.00027945,3]
[368477310,1751189477905,-600.46,0.00027945,3]
[368477311,1751189477915,-490.0,0.00027945,3]
[368477312,1751189477924,-490.0,0.00027945,3]
[368477313,1751189477933,-490.0,0.00027945,3]
[368477314,1751189477942,-490.0,0.00027945,3]
[368477315,1751189477952,-1694.37,0.00027945,3]
[368477316,1751189477961,-490.0,0.00027945,3]
[368477317,1751189477970,-490.0,0.00027945,3]
[368477318,1751189477979,-490.0,0.00027945,3]
[368477319,1751189477988,-878.63,0.00027945,3]
[368477320,1751189477997,-737.29,0.00027945,3]
[368477321,1751189478006,-737.29,0.00027945,3]
[368477322,1751189478015,-490.0,0.00027945,3]
[368477323,1751189478024,-1348.51,0.00027945,3]
[368477324,1751189478034,-2029.0,0.00027945,3]
[368477325,1751189478043,-490.0,0.00027945,3]
[368477326,1751189478052,-455.11909661,0.00027945,3]
[368477327,1751189478062,-6054.23,0.00027945,3]
[368477328,1751189478071,-490.0,0.00027945,3]
[368477329,1751189478080,-490.0,0.00027945,3]
[368477330,1751189478091,-2413.55,0.00027945,3]
[368477331,1751189478101,-1540.51,0.00027945,3]
[368477332,1751189478110,-1240.73,0.00027945,3]
[368477333,1751189478119,-3134.38,0.00027945,3]
[368477334,1751189478130,-382.82597718,0.00027945,3]
[368477335,1751189478139,-490.0,0.00027945,3]
[368477336,1751189478148,-490.0,0.00027945,3]
[368477337,1751189478157,-1300.54,0.00027945,3]
[368477338,1751189478167,-1759.25,0.00027945,3]
[368477339,1751189478176,-490.0,0.00027945,3]
[368477340,1751189478186,-1073.81,0.00027945,3]
[368477341,1751189478195,-1670.81,0.00027945,3]
[368477342,1751189478205,-490.0,0.00027945,3]
[368477343,1751189478215,-1517.47,0.00027945,3]
[368477344,1751189478225,-813.1,0.00027945,3]
[368477345,1751189478235,-8639.62,0.00027945,3]
[368477346,1751189478244,-490.0,0.00027945,3]
[368477347,1751189478254,-5159.48,0.00027945,3]
[368477348,1751189478263,-1554.24,0.00027945,3]
[368477349,1751189478273,-490.0,0.00027945,3]
[368477350,1751189478282,-3283.15,0.00027945,3]
[368477351,1751189478292,-490.0,0.00027945,3]
[368477352,1751189478302,-490.0,0.00027945,3]
[368477353,1751189478311,-1860.69,0.00027945,3]
[368477354,1751189478320,-178175.02,0.00027945,3]
[368477355,1751189478330,-490.0,0.00027945,3]
[368477356,1751189478339,-1892.11,0.00027945,3]
[368477357,1751189478349,-490.0,0.00027945,3]
[368477358,1751189478358,-490.0,0.00027945,3]
[368477359,1751189478367,-1871.0,0.00027945,3]
[368477360,1751189478376,-502.91,0.00027945,3]